Cogmind - Beta 11.1 @@@ ROGUE MODE // 2022.06.19 @ 15:10:37 Player: ChromeKnight Result: Destroyed by as-10864 with Assembled Rifle Performance ------------- Evolutions (0) 0 Regions Visited (2) 400 Robots Destroyed (13) 65 Value Destroyed (148) 148 Prototype IDs (1) 20 Alien Tech Used (0) 0 Bonus (0) 0 TOTAL SCORE: 633 Bonus ------- None Cogmind --------- Core Integrity 0/250 Matter 300/300 Energy 45/100 System Corruption 4% Temperature Hot (225) Movement Core (50) Location -10/Mines Parts ------- > --- POWER (1) -------- (None) > --- PROPULSION (2) --- (None) > --- UTILITY (2) ------ Targeting Computer > --- WEAPON (2) ------- (None) > --- INVENTORY (5) ---- Light Treads Wheel VTOL Module Signal Interpreter Datajack Peak State ------------ > --- POWER ------------ Light Ion Engine > --- PROPULSION ------- Light Treads Compact Wheel > --- UTILITY ---------- Large Storage Unit Targeting Computer > --- WEAPON ----------- EM Pulse Gun Improved EM Shotgun > --- INVENTORY -------- Light Treads Light Treads Wheel VTOL Module VTOL Module VTOL Module VTOL Module Signal Interpreter EM Pulse Gun Improved EM Shotgun Improved EM Shotgun Small Laser Datajack [Rating: 11] Favorites ----------- Power Light Ion Engine Engine Light Ion Engine Propulsion Light Treads Treads Light Treads Wheel Compact Wheel Utility Large Storage Unit Storage Large Storage Unit Processor Targeting Computer Weapon EM Pulse Gun Energy Gun EM Pulse Gun Ballistic Gun Light Assault Rifle Build | -11 -10 -10 ------- Run | Scr Mat Min Slots Evolved . | . . . Power . | . . . Propulsion . | . . . Utility . | . . . Weapon . | . . . Parts Attached 13 | 6 6 1 Power 1 | 1 . . Engine 1 | 1 . . Core . | . . . Reactor . | . . . Propulsion 2 | 2 . . Treads 1 | 1 . . Leg . | . . . Wheel 1 | 1 . . Hover . | . . . Flight . | . . . Utility 3 | 1 2 . Device . | . . . Storage 2 | 1 1 . Processor 1 | . 1 . Hackware . | . . . Protection . | . . . Artifact . | . . . Weapon 7 | 2 4 1 Energy Gun 5 | 1 3 1 Energy Cannon . | . . . Ballistic Gun 2 | 1 1 . Ballistic Cannon . | . . . Launcher . | . . . Special Weapon . | . . . Impact Weapon . | . . . Slashing Weapon . | . . . Piercing Weapon . | . . . Special Melee Weapon . | . . . Unidentified Prototypes 1 | . 1 . Parts Lost 6 | . . 6 Power 1 | . . 1 Propulsion 2 | . . 2 Utility . | . . . Weapon 3 | . . 3 Highest Loss Streak 6 | . . 6 To Critical Strikes . | . . . Average Slot Usage (%) 93 | . 92 98 Engine 13 | . 14 13 Treads 14 | . 14 14 Wheel 14 | . 14 14 Storage 14 | . 14 14 Processor 9 | . 7 14 Energy Gun 22 | . 20 27 Ballistic Gun 5 | . 6 . Naked Turns . | . . . Heaviest Build 31 | 11 31 27 Greatest Support 20 | 20 16 16 Greatest Overweight (x) 1 | . 1 1 Average Overweight (x) . | . . 1 Largest Inventory Capacity 15 | 8 15 15 Average Capacity 14 | 6 14 14 Most Carried 15 | 3 15 14 Average Carried 11 | 2 12 13 Final Capacity 15 | 8 15 5 Final Carried 14 | 3 14 5 Class Distribution -------------------- 100% | Mutant Dominant Class ---------------- Mutant | -10/Materials Mutant | -10/Mines Resources | -11 -10 -10 ----------- Run | Scr Mat Min Matter Collected 342 | 218 124 . Remotely . | . . . Salvage Created 451 | . 359 92 Parts 24 | . 24 . Haulers Intercepted 1 | . 1 . Recyclers Shooed . | . . . Parts Field Recycled . | . . . Retrieved Matter . | . . . Parts Self-Destructed . | . . . Prevented . | . . . Kills | -11 -10 -10 ------- Run | Scr Mat Min Combat Hostiles Destroyed 15 | . 10 5 Guns 15 | . 10 5 Classes Destroyed 6 | . 5 1 Hauler 1 | . 1 . Recycler 1 | . 1 . Watcher 1 | . 1 . Swarmer 9 | . 9 . Grunt 1 | . 1 . Assembled 5 | . . 5 Best Kill Streak 5 | . 5 5 Combat Bots Only 5 | . 3 5 Max Kills in Single Turn 2 | . 2 1 Gunslinging 1 | . 1 . Exploded . | . . . Melee . | . . . Uniques/NPCs Destroyed . | . . . Combat | -11 -10 -10 -------- Run | Scr Mat Min Damage Taken 781 | . 249 532 Core 261 | . 74 187 Absorbed by Shields . | . . . Core Remaining (%) 100 | 100 . . Volleys Fired 42 | . 32 10 Largest 2 | . 2 2 Hottest 80 | . 80 80 Shots Fired 70 | . 57 13 Gun 70 | . 57 13 Cannon . | . . . Launcher . | . . . Special . | . . . Kinetic 15 | . 15 . Thermal . | . . . Explosive . | . . . Electromagnetic 55 | . 42 13 Robot Hit Streak 10 | . 6 10 Robot Miss Streak 6 | . 6 1 Penetration Max . | . . . Secondary Targets 1 | . 1 . Max Gunslinging Chain 1 | . 1 . Shots Hit Robots 43 | . 31 12 Core Hits 26 | . 17 9 Critical Kills . | . . . Critical Parts Destroyed . | . . . Critical Strikes . | . . . Melee Attacks . | . . . Impact . | . . . Slashing . | . . . Piercing . | . . . Sneak Attacks . | . . . Combat Hostiles . | . . . Follow-up Attacks . | . . . Damage Inflicted 600 | . 424 176 Guns 600 | . 424 176 Cannons . | . . . Explosions . | . . . Melee . | . . . Ramming . | . . . Kinetic 47 | . 47 . Thermal . | . . . Explosive . | . . . Electromagnetic 553 | . 377 176 Impact . | . . . Slashing . | . . . Piercing . | . . . Highest Corruption 4 | . 4 4 Average Corruption 3 | . 3 4 Corruption Purged . | . . . Corruption Blocked . | . . . Effects 12 | . 9 3 Message Errors 4 | . 3 1 Matter Fused 3 | . 1 2 Heat Flow Errors 1 | . 1 . Energy Discharges 1 | . 1 . Data Loss (minor) 3 | . 3 . Overload Shots . | . . . Overflow Damage . | . . . Projectiles . | . . . Explosions . | . . . Melee . | . . . Knockbacks . | . . . Impact . | . . . Kinetic . | . . . Secondary . | . . . Self-Inflicted Damage . | . . . Shots . | . . . Rammed . | . . . Targets Rammed . | . . . Kicked . | . . . Crushed . | . . . Highest Temperature 230 | . 184 230 Average Temperature 55 | . 37 117 Received Heat Transfer 272 | . 12 260 Siege Activations . | . . . Robots Corrupted 1 | . 1 . Combat Hostiles . | . . . Parts Fried 2 | . 2 . Impact Corruptions . | . . . Robots Melted . | . . . Combat Hostiles . | . . . Parts Melted . | . . . Heat Transferred . | . . . Parts Sabotaged . | . . . Parts Stolen . | . . . Parts Stripped . | . . . Power Chain Reactions . | . . . Missiles Intercepted . | . . . Alert | -11 -10 -10 ------- Run | Scr Mat Min Peak Influence 246 | . 246 5 Initial 5 | . . 5 Average 58 | . 76 4 Maximum Alert Level 1 | . 1 . Low Security (%) 99 | 100 99 100 Level 1 . | . . . Level 2 . | . . . Level 3 . | . . . Level 4 . | . . . Level 5 . | . . . High Security . | . . . Max Security . | . . . Squads Dispatched 2 | . 2 . Investigation 2 | . 2 . Extermination . | . . . Reinforcement . | . . . Assault . | . . . Garrison . | . . . Intercept . | . . . Searches Triggered . | . . . Construction Impeded . | . . . Haulers Reinforced . | . . . Active Scanning Responses . | . . . Cargo Convoy Interrupts . | . . . Stealth | -11 -10 -10 --------- Run | Scr Mat Min Distress Signals 1 | . 1 . Communications Jammed . | . . . Distress Signals . | . . . Times Spotted 24 | . 15 9 Peak Tracking Total 8 | . 5 8 Tactical Retreats . | . . . Traps | -11 -10 -10 ------- Run | Scr Mat Min Traps Triggered 5 | . 5 . Indirectly . | . . . Trap Hack Attempts . | . . . Triggered . | . . . Disarmed . | . . . Reprogrammed . | . . . Reused . | . . . Traps Extracted . | . . . Installed . | . . . Triggered 1 | . 1 . Machines | -11 -10 -10 ---------- Run | Scr Mat Min Machines Disabled . | . . . Max in Single Turn . | . . . Machines Sabotaged . | . . . Garrisons Compromised . | . . . Overloaded Fab Kills . | . . . Hacking | -11 -10 -10 --------- Run | Scr Mat Min Machines Accessed 3 | . 3 . Terminals 3 | . 3 . Fabricators . | . . . Repair Stations . | . . . Recycling Units . | . . . Scanalyzers . | . . . Garrison Access . | . . . Total Hacks 10 | . 10 . Successful 4 | . 4 . Failed 6 | . 6 . Catastrophic . | . . . Database Lockouts . | . . . Manual 10 | . 10 . Terminals 10 | . 10 . Fabricators . | . . . Repair Stations . | . . . Recycling Units . | . . . Scanalyzers . | . . . Garrison Access . | . . . Terminal Hacks . | . . . Fabricator Hacks . | . . . Repair Station Hacks . | . . . Recycling Unit Hacks . | . . . Scanalyzer . | . . . Garrison Access Hacks . | . . . Unauthorized Hacks 4 | . 4 . Terminals 4 | . 4 . Botnet 3 | . 3 . Operators 1 | . 1 . Fabricators . | . . . Repair Stations . | . . . Recycling Units . | . . . Scanalyzers . | . . . Garrison Access . | . . . Data Cores Recovered . | . . . Used . | . . . Hacking Detections 3 | . 3 . Full Trace Events . | . . . Feedback Events . | . . . Feedback Blocked . | . . . Robot Schematics Acquired . | . . . Robots Built . | . . . Authchips . | . . . Time . | . . . Total Robot Build Rating . | . . . Part Schematics Acquired . | . . . Parts Built . | . . . Authchips . | . . . Time . | . . . Total Part Build Rating . | . . . Parts Repaired . | . . . Time . | . . . Parts Recycled . | . . . Recycled Matter . | . . . Retrieved Matter . | . . . Retrieved Components . | . . . Parts Scanalyzed . | . . . Part Schematics Acquired . | . . . Parts Damaged . | . . . Bothacking | -11 -10 -10 ------------ Run | Scr Mat Min Used RIF Installer . | . . . Robots Hacked . | . . . Non-combat . | . . . Combat . | . . . Robot Hacks Applied . | . . . Relay Couplers Released . | . . . Fabnet Peak Effective % . | . . . Robots Rewired . | . . . Allies Hacked . | . . . Hacks Repelled . | . . . Allies | -11 -10 -10 -------- Run | Scr Mat Min Total Allies . | . . . Largest Group . | . . . Highest-Rated Group . | . . . Highest-Rated Ally . | . . . Total Orders . | . . . Ally Attacks . | . . . Total Damage . | . . . Kills . | . . . Allies Corrupted . | . . . Allies Melted . | . . . Intel | -11 -10 -10 ------- Run | Scr Mat Min Robot Analysis Total . | . . . Derelict Logs Recovered 1 | . . 1 Drone Launches . | . . . Drone Recoveries . | . . . Exploration | -11 -10 -10 ------------- Run | Scr Mat Min Turns Passed 1125 | 64 854 207 Spaces Moved 647 | 53 441 153 Core 5 | 5 . . Treads 2 | 2 . . Legs . | . . . Wheels 640 | 46 441 153 Hover . | . . . Flight . | . . . Fastest Speed 50 | 50 100 115 Average Speed 113 | 97 114 115 Slowest Speed 160 | 160 115 115 Overloaded Moves . | . . . Propulsion Burnouts . | . . . Robots Hopped . | . . . Cave-ins Triggered . | . . . Exploration Rate (%) 35 | 4 70 32 Regions Visited 2 Branch Regions 1 Pre-discovered Areas . | . . . Known Exits Taken . | . . . Unknown Exits Taken 2 | 1 1 . Scrap Searched . | . . . Spaces Dug . | . . . Terrain Destroyed . | . . . Melee . | . . . Projectile . | . . . AOE . | . . . Terrain Rammed . | . . . Walls Destroyed . | . . . Machines Disabled . | . . . Actions | -11 -10 -10 --------- Run | Scr Mat Min Total 969 | 62 736 171 Wait 242 | 1 235 6 Move 645 | 52 440 153 Hop . | . . . Pick Up 17 | 3 14 . Fast Attach 12 | 6 6 . Attach 1 | . . 1 Detach 1 | . 1 . Swap . | . . . Drop 9 | . 8 1 Fire 42 | . 32 10 Melee . | . . . Ram . | . . . Kick . | . . . Crush . | . . . Escape Stasis . | . . . Rewire . | . . . Trap . | . . . Miscellaneous . | . . . Route ------- -11/Scrapyard -10/Materials (discovered 4 exits: [*Mat x2] / [*Min x2]) -10/Mines History --------- Turn | Location | Event 3 | -11/Scrapyard | Discovered new exit (range 16) 65 | -11/Scrapyard | Entered Materials 171 | -10/Materials | Discovered new exit (range 5) 304 | -10/Materials | Discovered new exit (range 12) 317 | -10/Materials | Build established: Mutant 382 | -10/Materials | Discovered new exit (range 16) 528 | -10/Materials | Discovered new exit (range 5) 919 | -10/Materials | Entered Mines 985 | -10/Mines | Learned Materials machine intel 1087 | -10/Mines | Assembled infested the area 1117 | -10/Mines | Core integrity fell below 50% 1121 | -10/Mines | Core integrity fell below 20% 1126 | -10/Mines | Destroyed by as-10864 with Assembled Rifle Last Messages --------------- 01087_ ALERT: Infestation in the mines, dispatching Demolisher response squad. 01087_ K-01 Serf collects debris. 01092_ K-01 Serf destroyed. 01100_ as-92773 destroyed. 01101_ R-06 Scavenger destroyed. 01110_ IDTU&CZCDOKPSM QBOD 6X5DYTNZVTW 01110_ EM Pulse Gun destroyed. 01110_ Critical hit (Burn: +80). 01113_ EM Pulse Gun destroyed. 01113_ as-25623 destroyed. 01115_ Lgt. Ion Engine destroyed. 01115_ as-58100 destroyed. 01117_ as-84073 destroyed. 01120_ as-31588 suffers critical hit (Burn). 01120_ Lgt. Treads destroyed. 01121_ Com. Wheel destroyed. 01123_ as-73612 destroyed. 01125_ Dropped Lrg. Storage Unit. 01126_ Imp. EM Shotgun destroyed. Map ----- +----------------------------------------------------+ | ????????# ### #???? | | ????????## #?# #???? | | ?????????# ##?# #???? | | ?????????# ###??# ###?? | | ?????????# ##????# #?? | | ?????????## ##?????### #?? | | ??????????## ##????????# #?? | | ???????????# #?????????# #?? | | ???????????# #?????????# ### | | ???????????# #?????????# | | ???????????# #?????????##### | | ???????????# #?????????????? | | ????????#### #?????????????? | | ????????# #?????????????? | | ????????# ###?????????????? | | ????????# #???????????????? | | ???????## #???????????????? | | ??????## #???????????????? | | ??????# #???????????????? | | ??????# #???????????????? | | ??????# ##???????????????? | | ??##### #????????????????? | | ?##= ## ##???????????????? | | ?#===[a =% ###?????????????? | | ?#[[aaa #?????????????? | | ?##@%a[ #????????????? | | ??#### % #????????????? | | ?????## % #????????????? | | ??????## = #????????????? | | ???????## ##????????????? | | ????????? ##?????????????? | | ????????? #??????????????? | | ?????????# ?????????????? | | ?????????? ####????????????? | | ?????????? #???????????????? | | ?????????? #???????????????? | | ???????????#???????????????? | | ???????????????????????????? | | ???????????????????????????? | | ???????????????????????????? | | ???????????????????????????? | | ???????????????????????????? | | ???????????????????????????? | | ???????????????????????????? | | ???????????????????????????? | | ???????????????????????????? | | ???????????????????????????? | | ???????????????????????????? | | ???????????????????????????? | | ???????????????????????????? | +----------------------------------------------------+ Best States ------------- Heat Dissipation 25 Energy Generation 10 Energy Capacity 125 Matter Stores 300 Matter Capacity 300 Sight Range 16 Terrain Scan Density 10 Evasion (%) 40 Targeting Accuracy 5 Item Schematics ----------------- None Robot Schematics ------------------ None Fabricated ------------ Nothing Alien Tech Used ----------------- None Achievements -------------- None Challenges ------------ None Game ------ Seed SuperchargedSigixPit Manual? 0 Play Time 00:07:28 Cumulative 340.5 hours Start 2022.06.19 @ 15:03:15 End 2022.06.19 @ 15:10:37 Sessions 1 Manual Loads 0 Difficulty Rogue Special Mode None Game No. 608 Rogue 453 Adventurer 148 Explorer 7 Win Type - Total 11 Types 9/0/1/1/0/0/0/0/0 Lore% 75 Gallery% 87 Achievement% 67 Wizard Run 0 Options --------- ASCII 0 Keyboard 0 Movement Numpad Keybinds 0 Fullscreen 1 Font 18/SmallcapsGlow Map View 76x50 Tactical HUD 1 Map Filters NONE Filters NONE Steam 1 RUN: 02f3fb62-9bd9-4185-a642-0d25b577c239